bitfinex/quotes_BTCUSD_20240815
["timestamp","ask_amount","ask_price","bid_price","bid_amount"]
[1723743944823,0.168116,59483.0,59479.0,0.168125]
[1723743945124,0.0639,59486.0,59483.0,0.168115]
[1723743945943,0.0656,59491.0,59482.0,0.0781]
[1723743946147,0.0656,59491.0,59484.0,0.168112]
[1723743946320,0.168102,59488.0,59485.0,0.168108]
[1723743946923,0.168098,59490.0,59486.0,0.168106]
[1723743947737,0.168098,59490.0,59487.0,0.168103]
[1723743948089,0.0706,59491.0,59483.0,0.33623]
[1723743948090,0.005,59491.0,59483.0,0.33623]
[1723743948299,0.005,59491.0,59490.0,0.168095]
[1723743948433,0.168085,59494.0,59490.0,0.168094]
[1723743948636,0.168085,59494.0,59483.0,0.33623]
[1723743948637,0.168085,59494.0,59491.0,0.168092]
[1723743948841,0.168085,59494.0,59490.0,0.168094]
[1723743949043,0.168078,59496.0,59492.0,0.00049662]
[1723743949242,0.336152,59497.0,59490.0,0.336185]
[1723743949243,0.168077,59497.0,59493.0,0.168085]
[1723743949458,0.336142,59499.0,59493.0,0.00049641]
[1723743949679,0.168079,59496.0,59493.0,0.00049641]
[1723743949875,0.005,59491.0,59490.0,0.50428]
[1723743950077,0.168082,59495.0,59490.0,0.336185]
[1723743950316,0.08577727,59492.0,59490.0,0.00049705]
[1723743950518,0.59005427,59491.0,59490.0,0.00049705]
[1723743950671,0.336229,59484.0,59477.0,0.6477407]
[1723743950847,0.336236,59482.0,59477.0,0.4796097]
[1723743951049,0.31993181,59491.0,59478.0,0.00049961]
[1723743951256,0.504345,59483.0,59482.0,0.03]
[1723743951653,0.918175,59483.0,59482.0,0.03]
[1723743951901,0.983175,59483.0,59482.0,0.03]
[1723743952438,0.504387,59478.0,59477.0,0.0009097]
[1723743952773,0.840645,59478.0,59477.0,0.00140952]
[1723743953219,0.504387,59478.0,59477.0,0.0009097]
[1723743953499,0.840645,59478.0,59477.0,0.0009097]
[1723743954949,0.842645,59478.0,59477.0,0.0139097]
[1723743955990,1.178903,59478.0,59477.0,0.0139097]
[1723743956188,0.842645,59478.0,59477.0,0.0139097]
[1723743957374,1.42805754,59478.0,59477.0,0.0139097]
[1723743957525,1.42605754,59478.0,59477.0,0.0009097]
[1723743957916,1.42705754,59478.0,59477.0,0.0079097]
[1723743958116,1.49205754,59478.0,59477.0,0.0079097]
[1723743959395,1.82831554,59478.0,59477.0,0.0079097]
[1723743959584,1.49205754,59478.0,59477.0,0.0079097]
[1723743960473,1.49205754,59478.0,59477.0,0.0039097]
[1723743960801,1.50205754,59478.0,59477.0,0.0019097]
[1723743960999,1.83831554,59478.0,59477.0,0.0019097]
[1723743961206,2.26378184,59478.0,59477.0,0.0019097]
[1723743961408,2.63897996,59478.0,59477.0,0.0019097]
[1723743961820,1.51339,59469.0,59468.0,0.0009097]
[1723743962001,2.01132181,59469.0,59468.0,0.0009097]
[1723743962610,2.02726074,59469.0,59468.0,0.0009097]
[1723743963269,2.02726097,59469.0,59468.0,0.0009097]
[1723743963472,2.19881551,59469.0,59468.0,0.0009097]
[1723743963680,1.177319,59457.0,59456.0,0.0009108]
[1723743963890,2.51752781,59457.0,59456.0,0.0009108]
[1723743964099,2.95390481,59457.0,59456.0,0.0009108]
[1723743964330,2.71140167,59457.0,59456.0,0.0009108]
[1723743964521,2.96984713,59457.0,59456.0,0.0009108]
[1723743964736,2.99284713,59457.0,59456.0,0.0009108]
[1723743964951,3.00184713,59457.0,59456.0,0.0009108]
[1723743965160,3.00184713,59457.0,59456.0,8e-07]
[1723743965376,1.9916,59453.0,59452.0,0.009097]
[1723743965582,0.841012,59452.0,59436.0,0.51466362]
[1723743965796,2.67212331,59452.0,59436.0,0.51466362]
[1723743966002,2.3357177,59452.0,59436.0,0.51466362]
[1723743966208,2.3357177,59452.0,59431.0,0.0002]
[1723743966209,1.88666024,59452.0,59431.0,0.0002]
[1723743966423,0.54655454,59444.0,59431.0,0.0002]
[1723743966638,1.49397054,59432.0,59431.0,0.0002]
[1723743966847,1.83048954,59432.0,59431.0,0.0002]
[1723743967057,1.93048954,59432.0,59431.0,0.0002]
[1723743968334,1.59397054,59432.0,59431.0,0.0002]
[1723743968533,1.60397054,59432.0,59431.0,0.0002]
[1723743968924,1.59397054,59432.0,59431.0,0.0002]
[1723743969110,1.28545154,59432.0,59431.0,0.0002]
[1723743969319,0.87013254,59432.0,59431.0,0.0002]
[1723743969514,0.0762,59437.0,59431.0,0.0002]
[1723743969717,0.1636,59438.0,59431.0,0.0002]
[1723743969718,0.17155454,59436.0,59431.0,0.0002]
[1723743969960,0.168254,59434.0,59432.0,0.00779801]
[1723743970159,0.50805554,59436.0,59432.0,0.00779801]
[1723743970160,0.17155454,59436.0,59432.0,0.00779801]
[1723743970354,0.476256,59443.0,59433.0,0.336512]
[1723743970355,0.0636,59443.0,59433.0,0.336512]
[1723743970599,0.0762,59452.0,59444.0,0.336447]
[1723743970798,0.17155454,59447.0,59442.0,0.336461]
[1723743970996,0.0762,59452.0,59447.0,0.0788]
[1723743970997,0.168204,59452.0,59447.0,0.0788]
[1723743971235,0.168209,59450.0,59447.0,0.0788]
[1723743971457,0.0762,59457.0,59428.0,0.33854]
[1723743971458,0.17155454,59449.0,59438.0,0.336484]
[1723743971610,0.17155454,59449.0,59435.0,0.0651]
[1723743971611,0.168229,59443.0,59439.0,0.168239]
[1723743971815,0.336463,59442.0,59437.0,0.0788]
[1723743972028,0.16824,59439.0,59437.0,0.0788]
[1723743972227,0.17155454,59442.0,59434.0,0.0009097]
[1723743972429,0.336476,59440.0,59434.0,0.0009097]
[1723743972607,0.32153181,59441.0,59434.0,0.0009097]
[1723743972608,0.59053027,59435.0,59434.0,0.0009097]
[1723743972791,1.43508881,59435.0,59434.0,0.0009097]
[1723743973202,1.61148881,59435.0,59434.0,0.0009097]
[1723743973405,1.77263769,59435.0,59434.0,0.0009097]
[1723743973836,2.17333969,59435.0,59434.0,0.0009097]
[1723743974037,2.19633969,59435.0,59434.0,0.0009097]
[1723743974284,2.17333969,59435.0,59434.0,0.0009097]
[1723743974443,2.01219081,59435.0,59434.0,0.0009097]
[1723743975018,2.02619081,59435.0,59434.0,0.0009097]
[1723743975323,2.01219081,59435.0,59434.0,0.0009097]
[1723743975565,2.04919081,59435.0,59434.0,0.0009097]
[1723743975798,2.51074535,59435.0,59434.0,0.0009097]
[1723743976019,2.83324735,59435.0,59434.0,0.0009097]
[1723743976223,2.51074535,59435.0,59434.0,0.0009097]
[1723743976441,2.49674535,59435.0,59434.0,0.0009097]
[1723743977636,2.51074535,59435.0,59434.0,0.0009097]
[1723743977997,2.86124735,59435.0,59434.0,0.0009097]
[1723743978227,2.83324735,59435.0,59434.0,0.0009097]
[1723743978434,2.83324735,59435.0,59431.0,0.0002]
[1723743978435,1.514335,59432.0,59431.0,0.0002]
[1723743978631,2.55715238,59432.0,59431.0,0.0002]
[1723743978830,2.89367138,59432.0,59431.0,0.0002]
[1723743979433,2.55715238,59432.0,59431.0,0.0002]
[1723743979591,2.57115238,59432.0,59431.0,0.0002]
[1723743979766,2.23463338,59432.0,59431.0,0.0002]
[1723743980177,2.22877898,59432.0,59431.0,0.0002]
[1723743980374,2.24472251,59432.0,59431.0,0.0002]
[1723743980640,2.22877898,59432.0,59431.0,0.0002]
[1723743980884,2.24472252,59432.0,59431.0,0.0002]
[1723743981095,2.41627711,59432.0,59431.0,0.0002]
[1723743981304,2.40033352,59432.0,59431.0,0.0002]
[1723743981513,2.38633352,59432.0,59431.0,0.0002]
[1723743981722,2.40033352,59432.0,59431.0,0.0002]
[1723743982156,2.41627723,59432.0,59431.0,0.0002]
[1723743982366,2.41433352,59432.0,59431.0,0.0002]
[1723743982784,2.41627644,59432.0,59431.0,0.0002]
[1723743983212,2.43027644,59432.0,59431.0,0.0002]
[1723743983420,2.41627644,59432.0,59431.0,0.0011086]
[1723743983631,2.75279544,59432.0,59431.0,0.0011086]
[1723743983841,2.73879544,59432.0,59431.0,0.0011086]
[1723743984055,2.40227644,59432.0,59431.0,0.0011086]
[1723743984908,2.41627552,59432.0,59431.0,0.0011086]
[1723743985116,2.43027552,59432.0,59431.0,0.0011086]
[1723743985509,2.44427552,59432.0,59431.0,0.0011086]
[1723743985786,2.43027552,59432.0,59431.0,0.0011086]
[1723743986176,2.43936152,59432.0,59431.0,0.0011086]
[1723743986610,2.45336152,59432.0,59431.0,0.0011086]
[1723743986842,2.78988052,59432.0,59431.0,0.0011086]
[1723743987063,2.45336152,59432.0,59431.0,0.0011086]
[1723743987294,1.92228798,59432.0,59431.0,0.0011086]
[1723743987519,1.73189854,59432.0,59431.0,0.0011086]
[1723743987739,1.72281254,59432.0,59431.0,0.0011086]
[1723743988159,1.65731254,59432.0,59431.0,0.0011086]
[1723743988375,1.30679354,59432.0,59431.0,0.0011086]
[1723743988575,1.29085154,59432.0,59431.0,0.0011086]
[1723743988781,1.29278802,59432.0,59431.0,0.0011086]
[1723743989026,0.61975002,59432.0,59431.0,0.0011086]
[1723743989284,0.43555454,59432.0,59431.0,0.0811086]
[1723743989506,0.58981354,59432.0,59431.0,0.08866754]
[1723743989715,1.3813303,59432.0,59431.0,0.08866754]
[1723743989919,1.7288493,59432.0,59431.0,0.0011086]
[1723743990784,1.8288493,59432.0,59431.0,0.0011086]
[1723743990978,2.3282683,59432.0,59431.0,0.0011086]
[1723743991163,2.3192683,59432.0,59431.0,0.0011086]
[1723743991378,2.3082683,59432.0,59431.0,0.0011086]
[1723743991580,2.6507873,59432.0,59431.0,0.0011086]
[1723743991789,2.67559137,59432.0,59431.0,0.0011086]
[1723743991988,2.67559137,59432.0,59431.0,1e-08]
[1723743992200,2.67859137,59432.0,59431.0,1e-08]
[1723743992408,2.99917276,59432.0,59431.0,1e-08]
[1723743992642,3.02310158,59432.0,59431.0,1e-08]
[1723743992865,3.02117276,59432.0,59431.0,1e-08]
[1723743993107,1.850975,59428.0,59427.0,0.009086]
[1723743993366,2.90463582,59428.0,59427.0,0.009086]
[1723743994013,2.88870681,59428.0,59427.0,0.009086]
[1723743994225,2.90463563,59428.0,59427.0,0.009086]
[1723743994439,2.98268459,59428.0,59427.0,0.009086]
[1723743994650,3.15423913,59428.0,59427.0,0.009086]
[1723743995280,3.07619017,59428.0,59427.0,0.009086]
[1723743995482,2.48231736,59428.0,59427.0,0.009086]
[1723743995684,2.51031736,59428.0,59427.0,0.009086]
[1723743996125,2.84685836,59428.0,59427.0,0.009086]
[1723743996338,2.92492343,59428.0,59427.0,0.009086]
[1723743996543,2.58838243,59428.0,59427.0,0.009086]
[1723743996753,2.75993697,59428.0,59427.0,0.009086]
[1723743997189,2.77749655,59428.0,59427.0,0.009086]
[1723743998030,2.60594201,59428.0,59427.0,0.009086]
[1723743998510,2.08554201,59428.0,59427.0,0.009086]
[1723743998713,1.41093594,59428.0,59427.0,0.009086]
[1723743998928,1.07439494,59428.0,59427.0,0.009086]
[1723743999337,0.38731294,59428.0,59427.0,0.009086]
[1723743999547,0.20504294,59428.0,59427.0,0.319359]
[1723743999776,0.000827,59435.0,59427.0,0.151086]
[1723743999989,0.014,59428.0,59427.0,0.66318793]
[1723744000205,0.518811,59428.0,59427.0,0.15836793]
[1723744000414,1.34944754,59428.0,59427.0,0.09816793]
[1723744000613,0.69229834,59428.0,59427.0,0.10827829]
[1723744000748,1.02883934,59428.0,59427.0,0.09816793]
[1723744000952,1.02883934,59428.0,59427.0,0.090886]
[1723744001374,0.69929834,59428.0,59427.0,0.090886]
[1723744001575,0.18748734,59428.0,59427.0,0.090886]
[1723744001774,0.0189328,59428.0,59427.0,0.598706]
[1723744001978,0.003,59428.0,59427.0,0.94253493]
[1723744002182,0.002,59428.0,59427.0,0.93953493]
[1723744002443,0.002,59428.0,59427.0,0.94253493]
[1723744002654,0.002,59428.0,59427.0,1.00263493]
[1723744002825,0.168258,59433.0,59430.0,0.168264]
[1723744002975,0.168258,59433.0,59429.0,0.168267]
[1723744002976,0.01593422,59432.0,59429.0,0.168267]
[1723744003179,0.01593422,59432.0,59430.0,0.00726366]
[1723744003427,0.168262,59431.0,59430.0,0.00726366]
[1723744003638,0.35575076,59431.0,59430.0,0.00726366]
[1723744003830,0.01593422,59431.0,59430.0,0.580395]
[1723744004029,0.000827,59435.0,59431.0,0.336521]
[1723744004229,0.000827,59435.0,59432.0,0.243858]
[1723744004230,0.17155454,59434.0,59432.0,0.243858]
[1723744004431,0.17155454,59434.0,59432.0,0.0756]
[1723744004772,0.01593398,59433.0,59432.0,0.0756]
[1723744004985,0.01593398,59433.0,59432.0,0.243859]
[1723744005101,0.01593398,59433.0,59432.0,0.0756]
[1723744005501,0.18418798,59434.0,59432.0,0.0756]
[1723744005707,0.01593398,59433.0,59432.0,0.0756]
[1723744005902,0.01593398,59433.0,59432.0,0.0766]
[1723744006166,0.01593398,59433.0,59432.0,0.0776]
[1723744006356,0.01593398,59433.0,59432.0,0.581377]
[1723744006564,0.000827,59435.0,59434.0,0.336507]
[1723744006776,0.000827,59435.0,59434.0,0.58156]
[1723744006976,0.000827,59435.0,59434.0,0.245053]
[1723744007197,0.000827,59435.0,59434.0,0.0768]
[1723744007423,0.000827,59435.0,59434.0,0.245053]
[1723744007629,0.000827,59435.0,59434.0,0.59163072]
[1723744008206,0.000827,59435.0,59434.0,0.25512372]
[1723744008652,0.000827,59435.0,59434.0,0.59163072]
[1723744008831,0.001827,59435.0,59434.0,0.59163072]
[1723744009237,0.000827,59435.0,59434.0,0.59163072]
[1723744009535,0.000827,59435.0,59434.0,0.59263072]
[1723744010151,0.000827,59435.0,59434.0,0.59163072]
[1723744010361,0.000827,59435.0,59434.0,0.59363072]
[1723744010741,0.000827,59435.0,59434.0,0.93113772]
[1723744010877,0.000827,59435.0,59434.0,0.59363072]
[1723744011331,0.000827,59435.0,59434.0,0.59663072]
[1723744011708,0.000827,59435.0,59434.0,0.93313772]
[1723744011907,0.000827,59435.0,59434.0,0.59663072]
[1723744012186,0.000827,59435.0,59434.0,0.99543772]
[1723744012432,0.000827,59435.0,59434.0,1.33194472]
[1723744012640,0.18573658,59461.0,59454.0,0.0827]
[1723744012843,0.168191,59457.0,59454.0,0.0827]
[1723744013024,0.168194,59456.0,59454.0,0.0827]
[1723744013152,0.168194,59456.0,59455.0,0.00995186]
[1723744013550,0.504577,59456.0,59455.0,0.00995186]
[1723744013987,1.01251454,59456.0,59455.0,0.00995186]
[1723744014184,0.33370599,59456.0,59441.0,0.0828]
[1723744014391,0.17155454,59455.0,59445.0,0.00693499]
[1723744014596,0.003,59456.0,59446.0,0.0828]
[1723744014849,0.34274654,59456.0,59449.0,0.336418]
[1723744015055,0.33637,59459.0,59450.0,0.336413]
[1723744015409,0.009,59456.0,59451.0,0.0828]
[1723744015612,0.009,59456.0,59454.0,0.168196]
[1723744015811,0.007,59456.0,59452.0,0.34329739]
[1723744016096,0.175191,59456.0,59451.0,0.0828]
[1723744016324,0.009,59456.0,59455.0,0.168194]
[1723744016526,0.009,59456.0,59454.0,0.168196]
[1723744016728,0.009,59456.0,59453.0,0.336399]
[1723744016729,0.175191,59456.0,59455.0,0.01682599]
[1723744017081,0.182191,59456.0,59455.0,0.01682599]
[1723744017635,0.69612854,59456.0,59455.0,0.01682599]
[1723744017842,0.68312854,59456.0,59455.0,0.01682599]
[1723744018064,0.68312854,59456.0,59451.0,0.0828]
[1723744018065,0.168202,59452.0,59451.0,0.0828]
[1723744018284,0.89719837,59456.0,59455.0,0.001]
[1723744018491,0.947957,59456.0,59455.0,0.001]
[1723744018724,1.29134,59456.0,59455.0,0.001]
[1723744018930,0.168208,59450.0,59449.0,0.0797]
[1723744019136,0.504625,59450.0,59449.0,0.0797]
[1723744019336,0.841042,59450.0,59449.0,0.08661064]
[1723744020297,0.504625,59450.0,59449.0,0.08661064]
[1723744021187,0.841042,59450.0,59449.0,0.00691064]
[1723744021408,0.168222,59445.0,59444.0,0.4787]
[1723744021614,0.16822,59446.0,59444.0,0.00694108]
[1723744021817,0.337244,59450.0,59444.0,0.00694108]
[1723744021818,0.000827,59450.0,59444.0,0.00694108]
[1723744022019,0.000827,59450.0,59449.0,0.307111]
[1723744022233,0.000827,59450.0,59449.0,0.14581064]
[1723744022444,0.000827,59450.0,59449.0,0.65044364]
[1723744022647,0.000827,59450.0,59449.0,0.98686564]
[1723744022850,0.000827,59450.0,59449.0,1.32328764]
[1723744023460,0.001827,59450.0,59449.0,1.32328764]
[1723744023865,0.001827,59450.0,59449.0,1.49484218]
[1723744024096,0.001827,59450.0,59449.0,1.83126418]
[1723744024320,0.001827,59450.0,59449.0,1.49484218]
[1723744024744,0.000827,59450.0,59449.0,1.49484218]
[1723744024945,0.000827,59450.0,59449.0,1.49584218]
[1723744025144,0.000827,59450.0,59449.0,1.32428764]
[1723744025573,0.001827,59450.0,59449.0,1.32628764]
[1723744025774,0.001827,59450.0,59449.0,1.32728764]
[1723744025775,0.002827,59450.0,59449.0,1.32728764]
[1723744026283,0.000827,59450.0,59449.0,1.32328764]
[1723744026721,0.002827,59450.0,59449.0,1.32728764]
[1723744027977,0.001827,59450.0,59449.0,1.32428764]
[1723744028104,0.000827,59450.0,59449.0,1.32628764]
[1723744028307,0.001827,59450.0,59449.0,1.32728764]
[1723744028510,0.002827,59450.0,59449.0,1.32728764]
[1723744028911,0.001827,59450.0,59449.0,1.32628764]
[1723744029435,0.002827,59450.0,59449.0,1.32728764]
[1723744030001,0.002827,59450.0,59449.0,0.99086564]
[1723744030200,0.002827,59450.0,59449.0,1.32728764]
[1723744031205,0.002827,59450.0,59449.0,1.32428764]
[1723744031408,0.000827,59450.0,59449.0,1.32328764]
[1723744031615,0.001827,59450.0,59449.0,1.32628764]
[1723744031835,0.002827,59450.0,59449.0,1.32428764]
[1723744032205,0.002827,59450.0,59449.0,1.32628764]
[1723744032412,0.0647,59471.0,59468.0,0.168156]
[1723744032618,0.0647,59471.0,59469.0,0.00645856]
[1723744032619,0.1,59470.0,59469.0,0.00645856]
[1723744033077,0.77601054,59470.0,59469.0,0.00645856]
[1723744033289,0.16817,59464.0,59460.0,0.168179]
[1723744033528,0.16818,59460.0,59459.0,0.4787]
[1723744033674,1.07595454,59460.0,59459.0,0.4787]
[1723744033878,1.41231454,59460.0,59459.0,0.4787]
[1723744034296,1.07595454,59460.0,59459.0,0.4787]
[1723744035178,1.08395454,59460.0,59459.0,0.4787]
[1723744035374,0.74759454,59460.0,59459.0,0.4787]
[1723744035588,0.336369,59459.0,59452.0,0.336403]
[1723744035842,0.17155454,59458.0,59450.0,0.336413]
[1723744036046,0.168189,59457.0,59452.0,0.336403]
[1723744036179,0.168189,59457.0,59453.0,0.168199]
[1723744036828,0.0826,59453.0,59442.0,0.08]
[1723744037020,0.06,59451.0,59442.0,0.08]
[1723744037222,0.17155454,59450.0,59442.0,0.08]
[1723744037442,0.168228,59443.0,59442.0,0.08]
[1723744037659,0.336429,59448.0,59442.0,0.08]
[1723744037838,0.336438,59447.0,59442.0,0.08]
[1723744038016,0.25733181,59446.0,59438.0,0.0813]
[1723744038218,0.168232,59442.0,59438.0,0.0813]
[1723744038440,0.396412,59451.0,59438.0,0.0813]
[1723744038669,0.1383,59457.0,59439.0,0.0813]
[1723744038874,0.28746407,59456.0,59444.0,0.336448]
[1723744039210,0.18410562,59455.0,59451.0,0.168205]
[1723744039333,0.168201,59453.0,59449.0,0.504627]
[1723744039539,0.168201,59453.0,59449.0,0.16821]
[1723744039748,0.50794654,59455.0,59443.0,0.1468]
[1723744039749,0.17155454,59455.0,59443.0,0.1468]
[1723744039978,0.336369,59459.0,59455.0,0.168193]
[1723744039979,0.168184,59459.0,59455.0,0.168193]
[1723744040181,0.08660327,59478.0,59463.0,0.336342]
[1723744040182,0.396304,59470.0,59463.0,0.336342]
[1723744040424,0.396304,59470.0,59456.0,0.1468]
[1723744040425,0.18746763,59469.0,59459.0,0.33636]
[1723744040651,0.168172,59463.0,59459.0,0.168181]
[1723744040870,0.168169,59464.0,59460.0,0.168179]
[1723744041247,0.168166,59465.0,59461.0,0.168177]
[1723744041465,0.168169,59464.0,59460.0,0.168179]
[1723744041662,0.504493,59466.0,59461.0,0.168175]
[1723744042004,0.168166,59465.0,59461.0,0.168175]
[1723744042440,0.170166,59465.0,59462.0,0.168174]
[1723744042898,0.168172,59463.0,59460.0,0.168179]
[1723744043106,0.33636,59460.0,59456.0,0.4787]
[1723744043334,0.08577727,59461.0,59456.0,0.4787]
[1723744043335,0.504565,59457.0,59456.0,0.4787]
[1723744043552,0.504565,59457.0,59450.0,0.336412]
[1723744043553,0.168188,59457.0,59453.0,0.168199]
[1723744043816,0.168188,59457.0,59454.0,0.00995752]
[1723744044039,0.66865927,59455.0,59454.0,0.00995752]
[1723744044245,0.35153726,59455.0,59447.0,0.7985]
[1723744044553,0.504642,59448.0,59447.0,0.7985]
[1723744044775,1.01262454,59448.0,59447.0,0.7985]
[1723744044973,0.73619654,59448.0,59447.0,0.7985]
[1723744045543,0.73619654,59448.0,59447.0,0.80424955]
[1723744045764,1.15492454,59448.0,59447.0,0.00574955]
[1723744046165,1.15492454,59448.0,59435.0,0.1691587]
[1723744046166,0.16824,59439.0,59435.0,0.1691587]
[1723744046340,0.168248,59436.0,59435.0,0.0009097]
[1723744046543,0.504744,59436.0,59435.0,0.0009097]
[1723744046743,0.336478,59440.0,59435.0,0.0009097]
[1723744046944,0.168242,59438.0,59435.0,0.0009097]
[1723744047551,0.17155454,59440.0,59435.0,0.0009097]
[1723744047754,0.001,59436.0,59435.0,0.1761607]
[1723744047949,0.16822,59446.0,59442.0,0.16823]
[1723744048184,0.33977454,59446.0,59442.0,0.25013]
[1723744048356,0.17155454,59446.0,59442.0,0.418358]
[1723744048556,0.17155454,59446.0,59444.0,0.168225]
[1723744048759,0.33977554,59446.0,59442.0,0.250128]
[1723744049059,0.17155454,59446.0,59443.0,0.168227]
[1723744049239,0.33977454,59446.0,59442.0,0.250129]
[1723744049440,0.168223,59445.0,59442.0,0.250129]
[1723744049744,0.168228,59443.0,59438.0,0.418382]
[1723744049985,0.17155454,59446.0,59435.0,0.0079097]
[1723744049986,0.168241,59439.0,59435.0,0.0079097]
[1723744050205,0.17155454,59446.0,59435.0,0.0079097]
[1723744050206,0.168235,59441.0,59436.0,0.168245]
[1723744050422,0.168234,59441.0,59437.0,0.168245]
[1723744050644,0.336457,59443.0,59438.0,0.168241]
[1723744050645,0.168231,59442.0,59438.0,0.168241]
[1723744050768,0.336447,59445.0,59439.0,0.168239]
[1723744050960,0.170228,59443.0,59439.0,0.168239]
[1723744051566,0.168228,59443.0,59439.0,0.168239]
[1723744051768,0.396429,59448.0,59435.0,0.1691587]
[1723744051769,0.168241,59439.0,59435.0,0.1691587]
[1723744051969,0.168235,59441.0,59438.0,0.168242]
[1723744052303,0.17155454,59442.0,59438.0,0.336483]
[1723744052508,0.17155454,59442.0,59440.0,0.168236]
[1723744052969,0.17155454,59442.0,59439.0,0.168239]
[1723744053169,0.336468,59441.0,59435.0,0.1691597]
[1723744053381,0.16824,59439.0,59435.0,0.1691597]
[1723744053864,0.16824,59439.0,59436.0,0.168246]
[1723744054305,0.16824,59439.0,59435.0,0.3374107]
[1723744054306,0.336472,59441.0,59435.0,0.0009097]
[1723744054478,0.168241,59439.0,59435.0,0.1691597]
[1723744054683,0.228848,59436.0,59435.0,0.0009097]
[1723744054836,0.73689854,59436.0,59435.0,0.0009097]
[1723744055037,1.07339454,59436.0,59435.0,0.0009097]
[1723744055799,1.40989054,59436.0,59435.0,0.0009097]
[1723744056904,1.40989054,59436.0,59435.0,0.0019097]
[1723744057305,1.40989054,59436.0,59435.0,0.0029097]
[1723744058118,1.40989054,59436.0,59435.0,0.0019097]
[1723744058278,0.228848,59436.0,59435.0,0.0019097]
[1723744058485,0.173248,59436.0,59435.0,0.0019097]
[1723744058724,0.173248,59436.0,59435.0,0.0077323]
[1723744058951,0.173248,59436.0,59435.0,0.0019097]
[1723744059192,0.509744,59436.0,59435.0,0.0009097]
[1723744059619,0.009,59436.0,59435.0,0.0009097]
[1723744059819,0.00879748,59436.0,59435.0,0.0067323]
[1723744060019,0.0618,59439.0,59435.0,0.1691607]
[1723744060231,0.0618,59439.0,59435.0,0.0061923]
[1723744060440,0.002,59436.0,59435.0,0.5109413]
[1723744060845,0.16824,59439.0,59435.0,0.1744433]
[1723744061049,0.16824,59439.0,59436.0,0.168247]
[1723744061251,0.002,59439.0,59438.0,0.168242]
[1723744061460,0.002,59439.0,59435.0,0.0061923]
[1723744061461,0.002,59439.0,59437.0,0.00527042]
[1723744061665,0.170241,59439.0,59438.0,0.00526434]
[1723744061867,0.002,59439.0,59438.0,0.00526434]
[1723744062080,0.170239,59439.0,59436.0,0.168245]
[1723744062288,0.170239,59439.0,59438.0,0.00526434]
[1723744062493,0.33978854,59441.0,59438.0,0.168242]
[1723744062702,0.17155454,59441.0,59437.0,0.00527042]
[1723744062922,0.17155454,59441.0,59438.0,0.00526434]
[1723744063128,0.50471,59440.0,59438.0,0.00526434]
[1723744063324,0.17155454,59441.0,59436.0,0.336493]
[1723744063532,0.33978954,59441.0,59439.0,0.00525825]
[1723744063739,0.168236,59440.0,59437.0,0.168244]
[1723744064289,0.17255454,59441.0,59437.0,0.336488]
[1723744064290,0.17455454,59441.0,59437.0,0.336488]
[1723744064495,0.17455454,59441.0,59438.0,0.168241]
[1723744064496,0.34078954,59441.0,59438.0,0.168241]
[1723744064692,0.168238,59440.0,59436.0,0.168245]
[1723744065505,0.33978854,59441.0,59436.0,0.336494]
[1723744065703,0.33978854,59441.0,59438.0,0.168242]
[1723744066518,0.17155454,59441.0,59436.0,0.336494]
[1723744066747,0.17255454,59441.0,59435.0,0.3374087]
[1723744066934,0.168237,59440.0,59436.0,0.168246]
[1723744067100,0.168241,59439.0,59435.0,0.1691607]
[1723744067295,0.08577727,59437.0,59435.0,0.0009097]
[1723744067501,0.74289854,59436.0,59435.0,0.0009097]
[1723744067805,1.09532746,59436.0,59435.0,0.0009097]
[1723744069060,1.09532746,59436.0,59435.0,0.0019097]
[1723744069061,1.43182346,59436.0,59435.0,0.0019097]
[1723744069209,1.51032346,59436.0,59435.0,0.0019097]
[1723744069409,1.61032346,59436.0,59435.0,0.0019097]
[1723744069615,1.61032346,59436.0,59435.0,0.0009097]
[1723744069818,1.27782746,59436.0,59435.0,0.0009097]
[1723744070024,0.53133546,59436.0,59435.0,0.0009097]
[1723744070223,0.44880254,59436.0,59435.0,0.0009097]
[1723744070422,0.34880254,59436.0,59435.0,0.0009097]
[1723744070629,0.68529854,59436.0,59435.0,0.0009097]
[1723744071260,0.68529854,59436.0,59435.0,0.0064365]
[1723744071261,0.004,59436.0,59435.0,0.0064365]
[1723744071474,0.004,59436.0,59435.0,0.0009097]
[1723744071902,0.004,59436.0,59435.0,0.0064365]
[1723744072103,0.004,59436.0,59435.0,0.0009097]
[1723744072244,0.168248,59436.0,59435.0,0.0064365]
[1723744072653,0.172248,59436.0,59435.0,0.0064365]
[1723744072856,0.52467759,59436.0,59435.0,0.0064365]
[1723744073140,0.168248,59436.0,59435.0,0.0064365]
[1723744073342,0.18418171,59436.0,59435.0,0.0064365]
[1723744073637,0.005,59436.0,59435.0,0.0064365]
[1723744073950,1.01279454,59436.0,59435.0,0.0064365]
[1723744074176,1.028728,59436.0,59435.0,0.0064365]
[1723744074385,1.028728,59436.0,59435.0,0.0009097]
[1723744075353,1.033728,59436.0,59435.0,0.0009097]
[1723744075560,0.02093346,59436.0,59435.0,0.0009097]
[1723744075758,0.005,59436.0,59435.0,0.1691607]
[1723744075954,0.005,59436.0,59435.0,0.5056627]
[1723744076134,0.009,59436.0,59435.0,0.5111895]
[1723744076540,0.009,59436.0,59435.0,1.7431895]
[1723744076744,0.005,59436.0,59435.0,1.8826955]
[1723744077105,0.336393,59455.0,59443.0,0.336456]
[1723744077306,0.18413066,59454.0,59448.0,0.168213]
[1723744077481,0.18413366,59453.0,59447.0,0.168214]
[1723744077685,0.01593366,59452.0,59449.0,0.168211]
[1723744077882,0.01593366,59452.0,59449.0,0.17365258]
[1723744078045,0.169035,59450.0,59449.0,0.00544158]
[1723744078251,0.08286066,59450.0,59449.0,0.00544158]
[1723744078657,0.08486066,59450.0,59449.0,0.17365258]
[1723744078909,0.08286066,59450.0,59449.0,0.168211]
[1723744079121,0.08286066,59450.0,59449.0,0.17365258]
[1723744080291,0.067927,59450.0,59449.0,0.17365258]
[1723744080497,0.003827,59450.0,59449.0,0.84649658]
[1723744080700,0.003827,59450.0,59449.0,1.31961858]
[1723744081716,0.001827,59450.0,59449.0,1.31961858]
[1723744082161,0.002827,59450.0,59449.0,1.32661858]
[1723744082605,0.001827,59450.0,59449.0,1.32661858]
[1723744083069,0.002827,59450.0,59449.0,0.92959658]